fUST/lending_fUST_20250717
["ID","MTS","AMOUNT","RATE_DAILY","PERIOD"]
[372618089,1752707452445,-12605.49131908,0.0002059,3]
[372618090,1752707452454,-160.0,0.0002059,3]
[372618091,1752707452463,-476.07036022,0.0002059,3]
[372618092,1752707452473,-214.40824756,0.0002059,3]
[372618093,1752707452482,-1500.0,0.00020616,2]
[372618094,1752707452491,-460.0,0.00020643,2]
[372618095,1752707452500,-1259.03,0.00020643,2]
[372618096,1752707452509,-460.0,0.00020643,2]
[372618097,1752707452519,-668.35,0.00020643,2]
[372618098,1752707452530,-460.0,0.00020644,2]
[372618099,1752707452539,-460.0,0.00020644,2]
[372618100,1752707452548,-460.0,0.00020644,2]
[372618101,1752707452558,-552.98,0.00020644,2]
[372618102,1752707452572,-1711.26,0.00020644,2]
[372618103,1752707452582,-460.0,0.00020644,2]
[372618104,1752707452591,-487.08,0.00020644,2]
[372618105,1752707452601,-162.786525,0.00020644,2]
[372618106,1752707452613,-162.786525,0.00020644,2]
[372618107,1752707452622,-460.0,0.00020644,2]
[372618108,1752707452631,-442.65433971,0.00020645,2]
[372618109,1752707452642,-295.32432582,0.00020648,2]
[372618110,1752707452652,-460.0,0.00020819,2]
[372618111,1752707452661,-676.79,0.0002082,2]
[372618112,1752707452670,-1258.46,0.0002082,2]
[372618113,1752707452680,-460.0,0.0002082,2]
[372618114,1752707452689,-688.19,0.0002082,2]
[372618115,1752707452700,-532.39,0.0002082,2]
[372618116,1752707452710,-460.0,0.0002082,2]
[372618117,1752707452720,-460.0,0.0002082,2]
[372618118,1752707452730,-460.0,0.0002082,2]
[372618119,1752707452740,-460.0,0.0002082,2]
[372618120,1752707452750,-460.0,0.0002082,2]
[372618121,1752707452760,-543.0,0.00020822,2]
[372618122,1752707452770,-827.0,0.00020822,2]
[372618123,1752707452780,-593.59,0.00020822,2]
[372618124,1752707452790,-503.11,0.00020822,2]
[372618125,1752707452799,-313.52,0.00020822,2]
[372618126,1752707452808,-460.0,0.00020822,2]
[372618127,1752707452817,-460.0,0.00020822,2]
[372618128,1752707452828,-460.0,0.00020822,2]
[372618129,1752707452837,-460.0,0.00020822,2]
[372618130,1752707452847,-460.0,0.00020822,2]
[372618131,1752707452856,-1131.36,0.00020822,2]
[372618132,1752707452867,-196.79234162,0.00020822,2]
[372618133,1752707452878,-460.0,0.00020822,2]
[372618134,1752707452887,-460.0,0.00020822,2]
[372618135,1752707452897,-460.0,0.00020822,2]
[372618136,1752707452907,-460.0,0.00020822,2]
[372618137,1752707452917,-460.0,0.00020822,2]
[372618138,1752707452927,-460.0,0.00020822,2]
[372618139,1752707452936,-460.0,0.00020822,2]
[372618140,1752707452946,-552.3,0.00020822,2]
[372618141,1752707452958,-151.0,0.00020831,2]
[372618142,1752707452968,-151.0,0.00020831,2]
[372618143,1752707452978,-1234.56918691,0.00020831,4]
[372618144,1752707452988,-460.0,0.00020916,2]
[372618145,1752707452998,-567.12,0.00020916,2]
[372618146,1752707453007,-1259.03,0.00020916,2]
[372618147,1752707453016,-460.0,0.00020916,2]
[372618148,1752707453028,-668.35,0.00020916,2]
[372618149,1752707453037,-460.0,0.00020918,2]
[372618150,1752707453046,-460.0,0.00020918,2]
[372618151,1752707453062,-460.0,0.00020918,2]
[372618152,1752707453072,-1711.26,0.00020918,2]
[372618153,1752707453082,-460.0,0.00020918,2]
[372618154,1752707453094,-487.08,0.00020918,2]
[372618155,1752707453104,-460.0,0.00020918,2]
[372618156,1752707453114,-2500.0,0.00020964,2]
[372618157,1752707453125,-1812.28533594,0.00020964,2]
[372618158,1752707453134,-2000.0,0.00021016,2]
[372618159,1752707453143,-1003.64477649,0.00021016,2]
[372618160,1752707453153,-567.12,0.00021032,2]
[372618161,1752707453162,-1970.809,0.00021033,2]
[372618162,1752707453171,-178.331,0.00021033,2]
[372618163,1752707453179,-360.0,0.00021033,2]
[372618164,1752707453189,-900.0,0.00021034,2]
[372618165,1752707453197,-151.0,0.00021072,2]
[372618166,1752707453208,-1234.56918691,0.00021072,4]
[372618167,1752707453217,-460.0,0.00021093,2]
[372618168,1752707453226,-676.79,0.00021094,2]
[372618169,1752707453236,-1258.46,0.00021094,2]
[372618170,1752707453245,-460.0,0.00021094,2]
[372618171,1752707453254,-688.19,0.00021094,2]
[372618172,1752707453263,-532.39,0.00021094,2]
[372618173,1752707453272,-460.0,0.00021094,2]
[372618174,1752707453282,-243.15,0.00021094,2]
[372618175,1752707453292,-460.0,0.00021094,2]
[372618176,1752707453302,-460.0,0.00021094,2]
[372618177,1752707453312,-460.0,0.00021094,2]
[372618178,1752707453322,-543.0,0.00021096,2]
[372618179,1752707453331,-827.0,0.00021096,2]
[372618180,1752707453341,-460.0,0.00021096,2]
[372618181,1752707453350,-460.0,0.00021096,2]
[372618182,1752707453359,-460.0,0.00021096,2]
[372618183,1752707453369,-460.0,0.00021096,2]
[372618184,1752707453378,-460.0,0.00021096,2]
[372618185,1752707453388,-1131.36,0.00021096,2]
[372618186,1752707453397,-460.0,0.00021096,2]
[372618187,1752707453407,-460.0,0.00021096,2]
[372618188,1752707453416,-460.0,0.00021096,2]
[372618189,1752707453426,-460.0,0.00021096,2]
[372618190,1752707453436,-460.0,0.00021096,2]
[372618191,1752707453446,-563.56,0.00021096,2]
[372618192,1752707453456,-552.3,0.00021096,2]
[372618193,1752707453467,-198.67,0.00021105,2]
[372618194,1752707453476,-567.12,0.00021119,2]
[372618195,1752707453487,-567.12,0.00021119,2]
[372618196,1752707453496,-567.12,0.00021141,2]
[372618197,1752707453506,-567.12,0.00021141,2]
[372618198,1752707453515,-567.12,0.00021141,2]
[372618199,1752707453525,-567.12,0.00021141,2]
[372618200,1752707453535,-567.32,0.00021141,2]
[372618201,1752707453544,-460.0,0.0002119,2]
[372618202,1752707453554,-1259.03,0.0002119,2]
[372618203,1752707453567,-548.66,0.0002119,2]
[372618204,1752707453576,-668.35,0.0002119,2]
[372618205,1752707453585,-460.0,0.00021192,2]
[372618206,1752707453595,-460.0,0.00021192,2]
[372618207,1752707453605,-460.0,0.00021192,2]
[372618208,1752707453615,-1711.26,0.00021192,2]
[372618209,1752707453624,-460.0,0.00021192,2]
[372618210,1752707453635,-487.08,0.00021192,2]
[372618211,1752707453646,-460.0,0.00021192,2]
[372618212,1752707453656,-1234.56918691,0.00021314,5]
[372618213,1752707453666,-5000.0,0.00021346,2]
[372618214,1752707453676,-460.0,0.00021367,2]
[372618215,1752707453686,-676.79,0.00021368,2]
[372618216,1752707453697,-1258.46,0.00021368,2]
[372618217,1752707453707,-259.18,0.00021368,2]
[372618218,1752707453716,-688.19,0.00021368,2]
[372618219,1752707453726,-532.39,0.00021368,2]
[372618220,1752707453736,-460.0,0.00021368,2]
[372618221,1752707453745,-553.16,0.00021368,2]
[372618222,1752707453755,-530.91908368,0.00021368,2]
[372618223,1752707453872,-543.0,0.0002137,2]
[372618224,1752707453883,-827.0,0.0002137,2]
[372618225,1752707453894,-151.0,0.0002137,2]
[372618226,1752707453904,-164.23352,0.0002137,2]
[372618227,1752707453914,-151.0,0.0002137,2]
[372618228,1752707453923,-460.0,0.0002137,2]
[372618229,1752707453933,-460.0,0.0002137,2]
[372618230,1752707453943,-460.0,0.0002137,2]
[372618231,1752707453953,-460.0,0.0002137,2]
[372618232,1752707453963,-350.29923246,0.0002137,2]
[372618233,1752707453972,-1131.36,0.0002137,2]
[372618234,1752707453982,-460.0,0.0002137,2]
[372618235,1752707453991,-460.0,0.0002137,2]
[372618236,1752707454001,-460.0,0.0002137,2]
[372618237,1752707454011,-460.0,0.0002137,2]
[372618238,1752707454021,-460.0,0.0002137,2]
[372618239,1752707454030,-552.3,0.0002137,2]
[372618240,1752707454040,-460.0,0.00021464,2]
[372618241,1752707454050,-1259.03,0.00021464,2]
[372618242,1752707454059,-668.35,0.00021464,2]
[372618243,1752707454069,-434.5,0.00021466,2]
[372618244,1752707454078,-460.0,0.00021466,2]
[372618245,1752707454087,-566.06,0.00021466,2]
[372618246,1752707454097,-1711.26,0.00021466,2]
[372618247,1752707454106,-460.0,0.00021466,2]
[372618248,1752707454116,-487.08,0.00021466,2]
[372618249,1752707454126,-460.0,0.00021466,2]
[372618250,1752707454136,-1342.77802894,0.00021512,2]
[372618251,1752707454146,-1234.56918691,0.00021555,5]
[372618252,1752707454156,-151.0,0.00021564,2]
[372618253,1752707454166,-151.0,0.00021564,2]
[372618254,1752707454175,-151.0,0.00021564,2]
[372618255,1752707454185,-2500.0,0.00021564,2]
[372618256,1752707454194,-460.0,0.00021581,2]
[372618257,1752707454204,-460.0,0.00021641,2]
[372618258,1752707454214,-676.79,0.00021642,2]
[372618259,1752707454223,-1258.46,0.00021642,2]
[372618260,1752707454232,-688.19,0.00021642,2]
[372618261,1752707454242,-532.39,0.00021642,2]
[372618262,1752707454251,-460.0,0.00021642,2]
[372618263,1752707454262,-543.0,0.00021644,2]
[372618264,1752707454271,-827.0,0.00021644,2]
[372618265,1752707454281,-460.0,0.00021644,2]
[372618266,1752707454290,-557.3,0.00021644,2]
[372618267,1752707454301,-460.0,0.00021644,2]
[372618268,1752707454311,-460.0,0.00021644,2]
[372618269,1752707454321,-1131.36,0.00021644,2]
[372618270,1752707454330,-349.10627561,0.00021644,2]
[372618271,1752707454340,-460.0,0.00021644,2]
[372618272,1752707454349,-460.0,0.00021644,2]
[372618273,1752707454358,-598.71,0.00021644,2]
[372618274,1752707454367,-552.3,0.00021644,2]
[372618275,1752707454376,-800.0,0.00021733,2]
[372618276,1752707454385,-460.0,0.00021738,2]
[372618277,1752707454394,-1259.03,0.00021738,2]
[372618278,1752707454403,-668.35,0.00021738,2]
[372618279,1752707454412,-191.49,0.0002174,2]
[372618280,1752707454421,-1711.26,0.0002174,2]
[372618281,1752707454430,-460.0,0.0002174,2]
[372618282,1752707454439,-487.08,0.0002174,2]
[372618283,1752707454449,-176.41,0.0002174,2]
[372618284,1752707454458,-1234.56918691,0.00021797,6]
[372618285,1752707454467,-27990.16436865,0.00021801,2]
[372618286,1752707454477,-162.786525,0.00021801,2]
[372618287,1752707454486,-162.786525,0.00021801,2]
[372618288,1752707454495,-872.0766957,0.00021847,2]
[372618289,1752707454504,-500.70822553,0.0002185,2]
[372618290,1752707454513,-249.600082,0.00021911,2]
[372618291,1752707454522,-151.0,0.00021911,2]
[372618292,1752707454531,-151.0,0.00021911,2]
[372618293,1752707454540,-151.0,0.00021911,2]
[372618294,1752707454550,-500.0,0.00021911,2]
[372618295,1752707454558,-207.4,0.00021911,2]
[372618296,1752707454571,-500.0,0.00021911,2]
[372618297,1752707454581,-151.0,0.00021911,2]
[372618298,1752707454591,-151.0,0.00021911,2]
[372618299,1752707454600,-151.0,0.00021911,2]
[372618300,1752707454611,-151.0,0.00021911,2]
[372618301,1752707454621,-151.0,0.00021911,2]
[372618302,1752707454630,-500.0,0.00021911,2]
[372618303,1752707454642,-151.0,0.00021911,2]
[372618304,1752707454652,-151.0,0.00021911,2]
[372618305,1752707454662,-151.0,0.00021911,2]
[372618306,1752707454671,-151.0,0.00021911,2]
[372618307,1752707454681,-151.0,0.00021911,2]
[372618308,1752707454690,-151.0,0.00021911,2]
[372618309,1752707454700,-3801.642,0.00021911,2]
[372618310,1752707454710,-151.0,0.00021911,2]
[372618311,1752707454719,-151.0,0.00021911,2]
[372618312,1752707454730,-151.0,0.00021911,2]
[372618313,1752707454739,-151.0,0.00021911,2]
[372618314,1752707454750,-175.8563729,0.00021911,2]
[372618315,1752707454759,-151.0,0.00021911,2]
[372618316,1752707454769,-151.0,0.00021911,2]
[372618317,1752707454780,-500.0,0.00021911,2]
[372618318,1752707454789,-151.0,0.00021911,2]
[372618319,1752707454799,-500.0,0.00021911,2]
[372618320,1752707454808,-151.0,0.00021911,2]
[372618321,1752707454818,-596.74679689,0.00021911,2]
[372618322,1752707454828,-153.7637497,0.00021911,2]
[372618323,1752707454838,-151.0,0.00021911,2]
[372618324,1752707454847,-151.0,0.00021911,2]
[372618325,1752707454856,-151.0,0.00021911,2]
[372618326,1752707454866,-151.0,0.00021911,2]
[372618327,1752707454875,-151.0,0.00021911,2]
[372618328,1752707454884,-151.0,0.00021911,2]
[372618329,1752707454894,-151.0,0.00021911,2]
[372618330,1752707454903,-151.0,0.00021911,2]
[372618331,1752707454912,-151.0,0.00021911,2]
[372618332,1752707454921,-166.46846412,0.00021911,2]
[372618333,1752707454930,-151.0,0.00021911,2]
[372618334,1752707454939,-25000.0,0.00021911,2]
[372618335,1752707454948,-835.14805828,0.00021911,2]
[372618336,1752707454957,-460.0,0.00021915,2]
[372618337,1752707454966,-676.79,0.00021916,2]
[372618338,1752707454975,-1258.46,0.00021916,2]
[372618339,1752707454984,-688.19,0.00021916,2]
[372618340,1752707454994,-532.39,0.00021916,2]
[372618341,1752707455003,-460.0,0.00021916,2]
[372618342,1752707455012,-500.0,0.00021917,2]
[372618343,1752707455021,-500.0,0.00021917,2]
[372618344,1752707455030,-500.0,0.00021917,2]
[372618345,1752707455039,-500.0,0.00021917,2]
[372618346,1752707455048,-500.0,0.00021917,2]
[372618347,1752707455057,-500.0,0.00021917,2]
[372618348,1752707455066,-536.59,0.00021917,2]
[372618349,1752707455075,-543.0,0.00021918,2]
[372618350,1752707455084,-827.0,0.00021918,2]
[372618351,1752707455093,-300.0,0.00021918,2]
[372618352,1752707455102,-200.0,0.00021918,2]
[372618353,1752707455111,-331.89385357,0.00021918,2]
[372618354,1752707455121,-443.60889273,0.00021918,2]
[372618355,1752707455131,-460.0,0.00021918,2]
[372618356,1752707455140,-1131.36,0.00021918,2]
[372618357,1752707455150,-460.0,0.00021918,2]
[372618358,1752707455159,-460.0,0.00021918,2]
[372618359,1752707455168,-552.3,0.00021918,2]
[372618360,1752707455177,-3080.54866329,0.00021938,2]
[372618361,1752707455187,-1384.52,0.00022,7]
[372618362,1752707455196,-165.0,0.00022,2]
[372618363,1752707455208,-460.0,0.00022012,2]
[372618364,1752707455217,-1259.03,0.00022012,2]
[372618365,1752707455227,-668.35,0.00022012,2]
[372618366,1752707455237,-1711.26,0.00022013,2]
[372618367,1752707455247,-334.0622192,0.00022013,2]
[372618368,1752707455257,-487.08,0.00022013,2]
[372618369,1752707455266,-1234.56918691,0.00022038,6]
[372618370,1752707455275,-23180.78,0.000221,2]
[372618371,1752707455285,-198.67,0.00022109,2]
[372618372,1752707455294,-2801.38616376,0.00022112,2]
[372618373,1752707455303,-560.0,0.00022129,2]
[372618374,1752707455313,-900.0,0.0002213,2]
[372618375,1752707455323,-587.0,0.00022143,2]
[372618376,1752707455333,-168.0,0.00022145,2]
[372618377,1752707455343,-460.0,0.00022189,2]
[372618378,1752707455352,-676.79,0.0002219,2]
[372618379,1752707455361,-1258.46,0.0002219,2]
[372618380,1752707455371,-688.19,0.0002219,2]
[372618381,1752707455381,-532.39,0.0002219,2]
[372618382,1752707455391,-460.0,0.0002219,2]
[372618383,1752707455400,-543.0,0.00022192,2]
[372618384,1752707455410,-827.0,0.00022192,2]
[372618385,1752707455421,-460.0,0.00022192,2]
[372618386,1752707455431,-1131.36,0.00022192,2]
[372618387,1752707455441,-460.0,0.00022192,2]
[372618388,1752707455451,-409.36,0.00022192,2]
[372618389,1752707455461,-552.3,0.00022192,2]
[372618390,1752707455471,-727.9233043,0.00022205,2]
[372618391,1752707455481,-500.0,0.00022233,2]
[372618392,1752707455490,-500.0,0.00022233,2]
[372618393,1752707455500,-500.0,0.00022233,2]
[372618394,1752707455510,-500.0,0.00022243,2]
[372618395,1752707455520,-500.0,0.00022243,2]
[372618396,1752707455530,-1234.56918691,0.00022279,6]
[372618397,1752707455540,-460.0,0.00022286,2]
[372618398,1752707455550,-1259.03,0.00022286,2]
[372618399,1752707455561,-668.35,0.00022286,2]
[372618400,1752707455573,-1711.26,0.00022287,2]
[372618401,1752707455583,-487.08,0.00022287,2]
[372618402,1752707455594,-151.0,0.00022287,7]
[372618403,1752707455604,-151.0,0.00022287,7]
[372618404,1752707455615,-1200.0,0.0002236,2]
[372618405,1752707455625,-16740.54922197,0.00022459,2]
[372618406,1752707455781,-937.73896403,0.00022459,2]
[372618407,1752707455842,-7321.711814,0.00022459,2]
[372618408,1752707455851,-460.0,0.00022463,2]
[372618409,1752707455862,-676.79,0.00022464,2]
[372618410,1752707455871,-1258.46,0.00022464,2]
[372618411,1752707455881,-688.19,0.00022464,2]
[372618412,1752707456001,-532.39,0.00022464,2]
[372618413,1752707456013,-460.0,0.00022464,2]
[372618414,1752707456023,-162.786525,0.00022464,7]
[372618415,1752707456033,-162.786525,0.00022464,7]
[372618416,1752707456043,-543.0,0.00022466,2]
[372618417,1752707456052,-827.0,0.00022466,2]
[372618418,1752707456062,-590.66174767,0.00022466,2]
[372618419,1752707456072,-1131.36,0.00022466,2]
[372618420,1752707456082,-460.0,0.00022466,2]
[372618421,1752707456092,-552.3,0.00022466,2]
[372618422,1752707456103,-151.0,0.00022488,7]
[372618423,1752707456113,-151.0,0.00022488,7]
[372618424,1752707456122,-247.355246,0.00022488,7]
[372618425,1752707456133,-1234.56918691,0.00022521,7]
[372618426,1752707456142,-460.0,0.0002256,2]
[372618427,1752707456152,-1259.03,0.0002256,2]
[372618428,1752707456162,-668.35,0.0002256,2]
[372618429,1752707456171,-1711.26,0.00022561,2]
[372618430,1752707456180,-487.08,0.00022561,2]
[372618431,1752707456190,-660.0,0.00022677,2]
[372618432,1752707456200,-460.0,0.00022737,2]
[372618433,1752707456210,-676.79,0.00022738,2]
[372618434,1752707456220,-1258.46,0.00022738,2]
[372618435,1752707456230,-688.19,0.00022738,2]
[372618436,1752707456239,-532.39,0.00022738,2]
[372618437,1752707456249,-575.87,0.00022738,2]
[372618438,1752707456258,-543.0,0.0002274,2]
[372618439,1752707456268,-827.0,0.0002274,2]
[372618440,1752707456278,-1131.36,0.0002274,2]
[372618441,1752707456288,-460.0,0.0002274,2]
[372618442,1752707456297,-552.3,0.0002274,2]
[372618443,1752707456305,-1234.56918691,0.00022762,7]
[372618444,1752707456315,-800.0,0.00022781,2]
[372618445,1752707456324,-849.79101408,0.00022781,2]
[372618446,1752707456334,-500.0,0.00022781,2]
[372618447,1752707456343,-460.0,0.00022834,2]
[372618448,1752707456352,-1259.03,0.00022834,2]
[372618449,1752707456361,-668.35,0.00022834,2]
[372618450,1752707456371,-1711.26,0.00022835,2]
[372618451,1752707456381,-487.08,0.00022835,2]
[372618452,1752707456390,-151.0,0.00022835,7]
[372618453,1752707456400,-14283.32,0.00023,7]
[372618454,1752707456409,-2110.16,0.00023,7]
[372618455,1752707456418,-1525.56,0.00023,2]
[372618456,1752707456427,-525.58295679,0.00023,3]
[372618457,1752707456436,-160.0,0.00023,3]
[372618458,1752707456445,-160.0,0.00023,3]
[372618459,1752707456455,-838.70323114,0.00023,3]
[372618460,1752707456464,-12605.49131908,0.00023,7]
[372618461,1752707456473,-160.0,0.00023,7]
[372618462,1752707456483,-160.0,0.00023,3]
[372618463,1752707456492,-476.07036022,0.00023,7]
[372618464,1752707456501,-230.8109288,0.00023,3]
[372618465,1752707456510,-160.0,0.00023,3]
[372618466,1752707456519,-1234.56918691,0.00023003,8]
[372618467,1752707456528,-460.0,0.00023011,2]
[372618468,1752707456538,-676.79,0.00023012,2]
[372618469,1752707456547,-1258.46,0.00023012,2]
[372618470,1752707456556,-688.19,0.00023012,2]
[372618471,1752707456570,-532.39,0.00023012,2]
[372618472,1752707456579,-543.0,0.00023014,2]
[372618473,1752707456589,-827.0,0.00023014,2]
[372618474,1752707456598,-165.0,0.00023014,7]
[372618475,1752707456608,-1131.36,0.00023014,2]
[372618476,1752707456618,-460.0,0.00023014,2]
[372618477,1752707456627,-552.3,0.00023014,2]
[372618478,1752707456636,-219.87124108,0.00023108,2]
[372618479,1752707456648,-1259.03,0.00023108,2]
[372618480,1752707456659,-668.35,0.00023108,2]
[372618481,1752707456668,-1711.26,0.00023109,2]
[372618482,1752707456677,-487.08,0.00023109,2]
[372618483,1752707456687,-3891.385409,0.000232,2]
[372618484,1752707456696,-640.0,0.00023225,2]
[372618485,1752707456707,-900.0,0.00023226,2]
[372618486,1752707456716,-1234.56918691,0.00023245,8]
[372618487,1752707456725,-215.0738,0.0002328,2]
[372618488,1752707456738,-460.0,0.00023285,2]
[372618489,1752707456748,-676.79,0.00023286,2]
[372618490,1752707456758,-1258.46,0.00023286,2]
[372618491,1752707456767,-688.19,0.00023286,2]
[372618492,1752707456776,-532.39,0.00023286,2]
[372618493,1752707456785,-543.0,0.00023288,2]
[372618494,1752707456795,-128.10868306,0.00023288,2]
[372618495,1752707456808,-626.0796925,0.00023288,2]
[372618496,1752707457026,-169.4978017,0.00018623,2]
[372618497,1752707457036,-173.99545943,0.00018623,2]
[372618498,1752707457045,-460.0,0.00018626,2]
[372618499,1752707457055,-460.0,0.0001863,2]
[372618500,1752707457065,-460.0,0.0001863,2]
[372618501,1752707457074,-460.0,0.0001863,2]
[372618502,1752707457083,-460.0,0.0001863,2]
[372618503,1752707457093,-460.0,0.000189,2]
[372618504,1752707457102,-460.0,0.00018904,2]
[372618505,1752707457111,-460.0,0.00018904,2]
[372618506,1752707457121,-460.0,0.00018904,2]
[372618507,1752707457130,-460.0,0.00019178,2]
[372618508,1752707457139,-271.357937,0.00019178,2]
[372618509,1752707457149,-460.0,0.00019452,2]
[372618510,1752707457158,-460.0,0.00019726,2]
[372618511,1752707457167,-460.0,0.0002,2]
[372618512,1752707457176,-460.0,0.0002,2]
[372618513,1752707457185,-460.0,0.00020274,2]
[372618514,1752707457195,-460.0,0.00020274,2]
[372618515,1752707457205,-460.0,0.00020548,2]
[372618516,1752707457214,-460.0,0.00020548,2]
[372618517,1752707457223,-460.0,0.00020822,2]
[372618518,1752707457233,-460.0,0.00020822,2]
[372618519,1752707457244,-460.0,0.00021096,2]
[372618520,1752707457253,-460.0,0.00021096,2]
[372618521,1752707457263,-460.0,0.00021368,2]
[372618522,1752707457273,-460.0,0.0002137,2]
[372618523,1752707457283,-524.52,0.0002137,2]
[372618524,1752707457293,-460.0,0.00021642,2]
[372618525,1752707457302,-537.31520679,0.00021644,2]
[372618526,1752707457312,-460.0,0.00021916,2]
[372618527,1752707457322,-460.0,0.0002219,2]
[372618528,1752707457332,-460.0,0.00022464,2]
[372618529,1752707457342,-460.0,0.00022738,2]
[372618530,1752707457352,-460.0,0.00023012,2]
[372618531,1752707457362,-460.0,0.00023286,2]
[372618532,1752707457372,-72.81162444,0.00023288,2]
[372618533,1752707457381,-1131.36,0.00023288,2]
[372618534,1752707457391,-460.0,0.00023288,2]
[372618535,1752707457400,-552.3,0.00023288,2]
[372618536,1752707457410,-23180.78,0.000233,2]
[372618537,1752707457420,-151.0,0.000233,7]
[372618538,1752707457429,-165.56,0.00023354,2]
[372618539,1752707457439,-3080.54866329,0.00023369,2]
[372618540,1752707457449,-1259.03,0.00023382,2]
[372618541,1752707457458,-668.35,0.00023382,2]
[372618542,1752707457467,-1711.26,0.00023383,2]
[372618543,1752707457476,-487.08,0.00023383,2]
[372618544,1752707457486,-1384.52,0.000234,7]
[372618545,1752707457496,-1234.56918691,0.00023486,9]
[372618546,1752707457505,-460.0,0.00023559,2]
[372618547,1752707457515,-676.79,0.0002356,2]
[372618548,1752707457525,-1258.46,0.0002356,2]
[372618549,1752707457535,-688.19,0.0002356,2]
[372618550,1752707457545,-532.39,0.0002356,2]
[372618551,1752707457555,-543.0,0.00023562,2]
[372618552,1752707457567,-827.0,0.00023562,2]
[372618553,1752707457577,-1131.36,0.00023562,2]
[372618554,1752707457587,-460.0,0.00023562,2]
[372618555,1752707457596,-552.3,0.00023562,2]
[372618556,1752707457607,-165.55,0.00023594,2]
[372618557,1752707457616,-1259.03,0.00023656,2]
[372618558,1752707457626,-668.35,0.00023656,2]
[372618559,1752707457637,-1711.26,0.00023657,2]
[372618560,1752707457646,-487.08,0.00023657,2]
[372618561,1752707457656,-1234.56918691,0.00023728,9]
[372618562,1752707457668,-800.0,0.00023831,2]
[372618563,1752707457678,-460.0,0.00023833,2]
[372618564,1752707457687,-676.79,0.00023834,2]
[372618565,1752707457696,-1258.46,0.00023834,2]
[372618566,1752707457707,-688.19,0.00023834,2]
[372618567,1752707457716,-532.39,0.00023834,2]
[372618568,1752707457726,-543.0,0.00023835,2]
[372618569,1752707457736,-827.0,0.00023835,2]
[372618570,1752707457746,-1131.36,0.00023836,2]
[372618571,1752707457755,-460.0,0.00023836,2]
[372618572,1752707457765,-162.786525,0.00023836,7]
[372618573,1752707457774,-552.3,0.00023836,2]
[372618574,1752707457784,-162.786525,0.00023836,7]
[372618575,1752707457793,-1244.46587268,0.000239,2]
[372618576,1752707457802,-1259.03,0.0002393,2]
[372618577,1752707457812,-668.35,0.0002393,2]
[372618578,1752707457822,-1595.97908031,0.00023931,2]
[372618579,1752707457832,-1711.26,0.00023931,2]
[372618580,1752707457842,-487.08,0.00023931,2]
[372618581,1752707457851,-1234.56918691,0.00023969,10]
[372618582,1752707457862,-215.5496034,0.00024,7]
[372618583,1752707457873,-525.58295679,0.00024,7]
[372618584,1752707457970,-160.0,0.00024,7]
[372618585,1752707457978,-160.0,0.00024,7]
[372618586,1752707457986,-160.0,0.00024,7]
[372618587,1752707457996,-460.0,0.00024107,2]
[372618588,1752707458005,-676.79,0.00024108,2]